Cogmind - Beta 14 @@@ ROGUE MODE // 2024.08.10 @ 04:10:39 Player: Rosa Result: Destroyed by Y-45 Defender with Heavy Assault Rifle Performance ------------- Evolutions (2) 1000 Regions Visited (6) 1200 Robots Destroyed (51) 255 Value Destroyed (1303) 1303 Prototype IDs (6) 120 Alien Tech Used (0) 0 Bonus (35) 35 TOTAL SCORE: 3913 Bonus ------- Follower Combat Kills 35 Cogmind --------- Core Integrity 0/550 Matter 300/300 Energy 374/380 System Corruption 0% Temperature Cool (12) Movement Treading (160) Location -8/Storage Parts ------- > --- POWER (2) -------- Light Deuterium Engine Light Deuterium Engine > --- PROPULSION (3) --- Light Treads Light Treads Light Treads > --- UTILITY (3) ------ Improved Heat Sink Improved Heat Sink Compact Battery > --- WEAPON (3) ------- Heavy Particle Gun Heavy Particle Gun Heavy Particle Gun > --- INVENTORY (5) ---- Advanced Beam Cannon Advanced Beam Cannon Advanced Beam Cannon High-powered Shotgun Peak State ------------ > --- POWER ------------ Ion Engine Improved Ion Engine > --- PROPULSION ------- Wheel Cesium-ion Thruster > --- UTILITY ---------- Active Sensor Suite > --- WEAPON ----------- Mining Claw Mining Claw > --- INVENTORY -------- Ion Cannon Improved Datajack [Rating: 36] Favorites ----------- Power Light Nuclear Core Engine Light Ion Engine Power Core Light Nuclear Core Propulsion Wheel Treads Light Treads Leg Aluminum Leg Wheel Wheel Flight Unit Cesium-ion Thruster Utility Improved Heat Sink Device Improved Heat Sink Storage Compact Battery Protection Improved Light Armor Plating Weapon Mining Claw Energy Gun Heavy Particle Gun Energy Cannon Ion Cannon Ballistic Gun Assault Rifle Slashing Weapon Mining Claw Special Melee Weapon Improved Datajack Build | -11 -10 -10 -9 -9 -8 -8 ------- Run | Yrd Mat Min Mat Min Mat Sto Slots Evolved 4 | . . . 2 . 2 . Power 1 | . . . 1 . . . Propulsion 1 | . . . . . 1 . Utility 1 | . . . 1 . . . Weapon 1 | . . . . . 1 . Parts Attached 70 | 6 10 5 3 3 21 22 Power 15 | 1 1 . 2 . 5 6 Engine 9 | 1 1 . 2 . . 5 Core 6 | . . . . . 5 1 Reactor . | . . . . . . . Propulsion 26 | 2 4 2 . 3 3 12 Treads 7 | . . . . . 1 6 Leg 5 | . . . . . 1 4 Wheel 9 | 2 2 2 . 1 . 2 Hover . | . . . . . . . Flight 5 | . 2 . . 2 1 . Utility 15 | 1 3 3 1 . 5 2 Device 9 | . . 2 1 . 5 1 Storage 5 | 1 3 . . . . 1 Processor . | . . . . . . . Hackware . | . . . . . . . Protection 1 | . . 1 . . . . Artifact . | . . . . . . . Weapon 14 | 2 2 . . . 8 2 Energy Gun 7 | . . . . . 5 2 Energy Cannon 1 | . . . . . 1 . Ballistic Gun 3 | 2 . . . . 1 . Ballistic Cannon . | . . . . . . . Launcher . | . . . . . . . Special Weapon . | . . . . . . . Impact Weapon . | . . . . . . . Slashing Weapon 2 | . 2 . . . . . Piercing Weapon . | . . . . . . . Special Melee Weapon 1 | . . . . . 1 . Unidentified Prototypes 4 | . . 1 . . 2 1 Parts Lost 16 | . 1 . 1 . 12 2 Power 7 | . 1 . . . 4 2 Propulsion 3 | . . . 1 . 2 . Utility 2 | . . . . . 2 . Weapon 4 | . . . . . 4 . Highest Loss Streak 7 | . 1 . 1 . 7 1 To Critical Strikes . | . . . . . . . Average Slot Usage (%) 83 | . 94 91 90 98 56 89 Engine 10 | . 14 14 14 22 6 5 Core 4 | . . . . . 6 12 Treads 4 | . . . . . 3 14 Wheel 11 | . 22 28 20 7 1 1 Flight 2 | . 5 . . 13 3 . Device 14 | . . 4 22 22 11 18 Storage 6 | . 23 10 . . . 7 Protection 4 | . . 6 11 11 1 . Energy Gun 8 | . . . . . 6 27 Ballistic Gun 2 | . 14 . . . 2 . Slashing Weapon 12 | . 12 28 22 22 8 . Peak Build Rating 36 | 6 7 16 21 23 36 31 Average Rating 19 | 4 6 8 19 22 18 29 On Entrance 13 | . 6 6 16 20 23 25 Naked Turns . | . . . . . . . Heaviest Build 48 | 14 48 18 32 32 32 22 Greatest Support 60 | 26 26 20 20 10 20 60 Greatest Overweight (x) 5 | . 2 . 3 3 5 2 Average Overweight (x) . | . . . 1 3 1 . Largest Inventory Capacity 20 | 8 20 5 5 5 5 5 Average Capacity 5 | 7 10 5 5 5 5 5 Most Carried 10 | 2 10 5 5 5 5 5 Average Carried 3 | 1 4 3 4 4 2 3 Final Capacity 8 | 8 5 5 5 5 5 5 Final Carried 5 | 2 5 5 5 4 1 4 Class Distribution -------------------- 36% | Gladiator 34% | Scavenger-Gunner 25% | Mutant Dominant Class ---------------- Mutant | -10/Materials Gladiator | -10/Mines Gladiator | -9/Materials Gladiator | -9/Mines Scavenger-Gunner | -8/Materials Scavenger-Gunner | -8/Storage Resources | -11 -10 -10 -9 -9 -8 -8 ----------- Run | Yrd Mat Min Mat Min Mat Sto Matter Collected 1098 | 220 283 50 35 30 270 210 Remotely . | . . . . . . . Salvage Created 2086 | . 441 . 228 67 581 769 Parts 114 | . 19 . 14 8 32 41 Haulers Intercepted 4 | . 1 . . . 1 2 Recyclers Shooed 2 | . 2 . . . . . Parts Field Recycled . | . . . . . . . Retrieved Matter . | . . . . . . . Parts Self-Destructed . | . . . . . . . Prevented . | . . . . . . . Kills | -11 -10 -10 -9 -9 -8 -8 ------- Run | Yrd Mat Min Mat Min Mat Sto Combat Hostiles Destroyed 32 | . 5 . 6 4 10 7 Melee 13 | . . . 6 4 3 . Guns 14 | . 5 . . . 3 6 Cannons 3 | . . . . . 3 . Classes Destroyed 12 | . 5 . 2 . 4 1 Worker 8 | . 1 . 1 . 1 5 Builder 1 | . . . . . . 1 Hauler 4 | . 1 . . . 1 2 Recycler 4 | . 2 . . . . 2 Watcher 2 | . 1 . . . . 1 Swarmer 6 | . . . 2 4 . . Grunt 17 | . 5 . 2 . 4 6 Brawler 1 | . . . . . 1 . Sentry 4 | . . . 2 . 1 1 Specialist 2 | . . . . . 2 . Hunter 1 | . . . . . 1 . Heavy 1 | . . . . . 1 . Best Kill Streak 9 | . 5 . 3 2 5 9 Combat Bots Only 5 | . 5 . 3 2 5 3 Max Kills in Single Turn 2 | . 1 . 1 1 1 2 Gunslinging . | . . . . . . . Exploded . | . . . . . . . Melee 1 | . . . 1 1 1 . Uniques/NPCs Destroyed . | . . . . . . . Combat | -11 -10 -10 -9 -9 -8 -8 -------- Run | Yrd Mat Min Mat Min Mat Sto Hostile Shots Fired 280 | . 36 . 42 26 123 53 Missed 78 | . 14 . 12 5 30 17 Damage Taken 2635 | . 239 . 281 171 1344 600 Core 617 | . 23 . 26 9 438 121 Absorbed by Shields . | . . . . . . . Regen/Repaired (Parts) 45 | . 45 . . . . . Core Remaining (%) 93 | 100 . 90 . 91 . . Volleys Fired 84 | . 18 . . . 32 34 Largest 3 | . 2 . . . 3 3 Hottest 165 | . 40 . . . 148 165 Shots Fired 181 | . 36 . . . 43 102 Gun 169 | . 36 . . . 31 102 Cannon 12 | . . . . . 12 . Launcher . | . . . . . . . Special . | . . . . . . . Kinetic 58 | . 36 . . . 22 . Thermal 123 | . . . . . 21 102 Explosive . | . . . . . . . Electromagnetic . | . . . . . . . Robot Hit Streak 9 | . 7 . . . 8 9 Robot Miss Streak 5 | . 5 . . . 3 4 Penetration Max . | . . . . . . . Secondary Targets 2 | . 1 . . . . 1 Max Gunslinging Chain 1 | . 1 . . . . 1 Shots Hit Robots 146 | . 29 . 12 5 47 53 Core Hits 69 | . 15 . 6 4 20 24 Critical Kills 2 | . . . . . 2 . Critical Parts Destroyed . | . . . . . . . Critical Strikes 8 | . . . . . 2 6 Burn 6 | . . . . . . 6 Meltdown 1 | . . . . . 1 . Destroy 1 | . . . . . 1 . Melee Attacks 71 | . 11 . 23 13 24 . Impact . | . . . . . . . Slashing 71 | . 11 . 23 13 24 . Piercing . | . . . . . . . Sneak Attacks 16 | . 8 . 2 . 6 . Combat Hostiles 6 | . . . 1 . 5 . Follow-up Attacks 9 | . 1 . 2 3 3 . Damage Inflicted 3160 | . 689 . 344 113 931 1083 Guns 1735 | . 300 . . . 352 1083 Cannons 206 | . . . . . 206 . Explosions . | . . . . . . . Melee 1211 | . 389 . 344 113 365 . Ramming 8 | . . . . . 8 . Kinetic 575 | . 300 . . . 275 . Thermal 1366 | . . . . . 283 1083 Explosive . | . . . . . . . Electromagnetic . | . . . . . . . Impact . | . . . . . . . Slashing 1211 | . 389 . 344 113 365 . Piercing . | . . . . . . . Highest Corruption . | . . . . . . . Average Corruption . | . . . . . . . Corruption Purged . | . . . . . . . Corruption Blocked . | . . . . . . . Overload Shots . | . . . . . . . Overflow Damage 31 | . 15 . 16 . . . Projectiles . | . . . . . . . Explosions . | . . . . . . . Melee 31 | . 15 . 16 . . . Knockbacks . | . . . . . . . Impact . | . . . . . . . Kinetic . | . . . . . . . Secondary . | . . . . . . . Self-Inflicted Damage 2 | . . . . . 2 . Shots . | . . . . . . . Rammed 5 | . . . . . 5 . Targets Rammed 5 | . . . . . 5 . Kicked . | . . . . . . . Crushed . | . . . . . . . Highest Temperature 220 | . . . . . 22 220 Average Temperature 64 | . . . . . 11 71 Received Heat Transfer 1002 | . 132 . 51 . 477 342 Siege Activations . | . . . . . . . Robots Corrupted . | . . . . . . . Combat Hostiles . | . . . . . . . Parts Fried . | . . . . . . . Impact Corruptions . | . . . . . . . Robots Melted 3 | . . . . . 1 2 Combat Hostiles 2 | . . . . . 1 1 Parts Melted 7 | . . . . 1 . 6 Heat Transferred 3034 | . . . . . 518 2516 Parts Sabotaged . | . . . . . . . Parts Stolen . | . . . . . . . Parts Stripped . | . . . . . . . Power Chain Reactions . | . . . . . . . Alert | -11 -10 -10 -9 -9 -8 -8 ------- Run | Yrd Mat Min Mat Min Mat Sto Peak Influence 277 | . 170 66 277 180 205 206 Initial 70 | . . 66 25 30 70 1 Average 91 | . 84 66 133 122 103 58 Maximum Alert Level 1 | . . . 1 . 1 1 Low Security (%) 89 | 100 100 100 67 100 86 98 Level 1 10 | . . . 32 . 13 1 Level 2 . | . . . . . . . Level 3 . | . . . . . . . Level 4 . | . . . . . . . Level 5 . | . . . . . . . High Security . | . . . . . . . Max Security . | . . . . . . . Squads Dispatched 10 | . 5 1 1 . 2 1 Investigation 5 | . 2 1 1 . . 1 Extermination . | . . . . . . . Reinforcement 5 | . 3 . . . 2 . Assault . | . . . . . . . Garrison . | . . . . . . . Intercept . | . . . . . . . Searches Triggered . | . . . . . . . Construction Impeded . | . . . . . . . Haulers Reinforced . | . . . . . . . Active Scanning Responses . | . . . . . . . Cargo Convoy Interrupts . | . . . . . . . Stealth | -11 -10 -10 -9 -9 -8 -8 --------- Run | Yrd Mat Min Mat Min Mat Sto Distress Signals 5 | . 1 . 1 . 3 . Communications Jammed . | . . . . . . . Distress Signals . | . . . . . . . Times Spotted 63 | . 11 . 21 7 15 9 Peak Tracking Total 6 | . 6 . 5 3 4 4 Tactical Retreats 1 | . . . . . 1 . Traps | -11 -10 -10 -9 -9 -8 -8 ------- Run | Yrd Mat Min Mat Min Mat Sto Traps Triggered 1 | . 1 . . . . . Indirectly . | . . . . . . . Trap Hack Attempts . | . . . . . . . Triggered . | . . . . . . . Disarmed . | . . . . . . . Reprogrammed . | . . . . . . . Reused . | . . . . . . . Traps Extracted . | . . . . . . . Installed . | . . . . . . . Triggered . | . . . . . . . Machines | -11 -10 -10 -9 -9 -8 -8 ---------- Run | Yrd Mat Min Mat Min Mat Sto Machines Disabled . | . . . . . . . Max in Single Turn . | . . . . . . . Machines Repaired . | . . . . . . . Machines Dismantled . | . . . . . . . Machines Sabotaged . | . . . . . . . Overloaded Fab Kills . | . . . . . . . Hacking | -11 -10 -10 -9 -9 -8 -8 --------- Run | Yrd Mat Min Mat Min Mat Sto Machines Accessed 11 | . 4 2 3 . . 2 Terminals 6 | . 2 . 2 . . 2 Fabricators . | . . . . . . . Repair Stations 1 | . 1 . . . . . Recycling Units 1 | . 1 . . . . . Scanalyzers 1 | . . . 1 . . . Garrison Access . | . . . . . . . Total Hacks 24 | . 10 2 6 . . 6 Successful 15 | . 9 2 3 . . 1 Failed 9 | . 1 . 3 . . 5 Catastrophic . | . . . . . . . Database Lockouts . | . . . . . . . Manual . | . . . . . . . Terminals 14 | . 5 . 3 . . 6 Fabricators . | . . . . . . . Repair Stations 2 | . 2 . . . . . Recycling Units 3 | . 3 . . . . . Scanalyzers 3 | . . . 3 . . . Garrison Access . | . . . . . . . Terminal Hacks 9 | . 4 2 2 . . 1 Record 4 | . 2 . 2 . . . Prototype ID Bank 1 | . 1 . . . . . Open Door 3 | . . 2 . . . 1 Alert Level 1 | . 1 . . . . . Fabricator Hacks . | . . . . . . . Repair Station Hacks 2 | . 2 . . . . . Scan Component 1 | . 1 . . . . . Repair 1 | . 1 . . . . . Recycling Unit Hacks 3 | . 3 . . . . . Recycle Component 2 | . 2 . . . . . Report Inventory 1 | . 1 . . . . . Scanalyzer 1 | . . . 1 . . . Insert Component 1 | . . . 1 . . . Garrison Access Hacks . | . . . . . . . Unauthorized Hacks . | . . . . . . . Terminals . | . . . . . . . Fabricators . | . . . . . . . Repair Stations . | . . . . . . . Recycling Units . | . . . . . . . Scanalyzers . | . . . . . . . Garrison Access . | . . . . . . . Data Cores Recovered . | . . . . . . . Used . | . . . . . . . Hacking Detections 7 | . 3 . 2 . . 2 Full Trace Events 4 | . 1 . 1 . . 2 Feedback Events . | . . . . . . . Feedback Blocked . | . . . . . . . Robot Schematics Acquired . | . . . . . . . Robots Built . | . . . . . . . Authchips . | . . . . . . . Time . | . . . . . . . Total Robot Build Rating . | . . . . . . . Part Schematics Acquired . | . . . . . . . Parts Built . | . . . . . . . Authchips . | . . . . . . . Time . | . . . . . . . Total Part Build Rating . | . . . . . . . Parts Repaired 1 | . 1 . . . . . Time 26 | . 26 . . . . . Parts Recycled 2 | . 2 . . . . . Recycled Matter . | . . . . . . . Retrieved Matter . | . . . . . . . Retrieved Components . | . . . . . . . Parts Scanalyzed . | . . . . . . . Part Schematics Acquired . | . . . . . . . Parts Damaged . | . . . . . . . Bothacking | -11 -10 -10 -9 -9 -8 -8 ------------ Run | Yrd Mat Min Mat Min Mat Sto Used RIF Installer . | . . . . . . . Robots Hacked . | . . . . . . . Non-combat . | . . . . . . . Combat . | . . . . . . . Robot Hacks Applied . | . . . . . . . Relay Couplers Released . | . . . . . . . Fabnet Peak Effective % . | . . . . . . . Robots Rewired . | . . . . . . . Allies Hacked . | . . . . . . . Hacks Repelled . | . . . . . . . Allies | -11 -10 -10 -9 -9 -8 -8 -------- Run | Yrd Mat Min Mat Min Mat Sto Total Allies 7 | . . . 5 1 1 . Largest Group 1 | . . . 1 1 1 . Highest-Rated Group 21 | . . . 15 5 21 . Highest-Rated Ally 21 | . . . 15 5 21 . Total Orders . | . . . . . . . Ally Attacks 63 | . . . 38 14 11 . Total Damage 298 | . . . 193 64 41 . Kills 7 | . . . 5 2 . . Allies Corrupted 1 | . . . 1 . . . Allies Melted . | . . . . . . . Intel | -11 -10 -10 -9 -9 -8 -8 ------- Run | Yrd Mat Min Mat Min Mat Sto Robot Analysis Total . | . . . . . . . Derelict Logs Recovered 1 | . . . . 1 . . Drone Launches 56 | . . 3 31 10 12 . Drone Recoveries 51 | . . . 32 11 8 . Exploration | -11 -10 -10 -9 -9 -8 -8 ------------- Run | Yrd Mat Min Mat Min Mat Sto Turns Passed 1976 | 55 267 137 410 160 436 511 Spaces Moved 1066 | 45 202 144 282 74 120 199 Core 13 | 1 . . . . 12 . Treads 207 | . . . . . 58 149 Legs 33 | . . . . . 1 32 Wheels 712 | 44 130 144 282 59 35 18 Hover . | . . . . . . . Flight 101 | . 72 . . 15 14 . Fastest Speed 37 | 50 37 80 95 125 95 100 Average Speed 120 | 87 74 80 97 155 192 179 Slowest Speed 355 | 90 110 80 125 274 355 260 Overloaded Moves . | . . . . . . . Propulsion Burnouts . | . . . . . . . Robots Hopped . | . . . . . . . Cave-ins Triggered . | . . . . . . . Exploration Rate (%) 22 | 4 43 31 24 22 12 21 Regions Visited 6 Branch Regions 3 Pre-discovered Areas 1 | . . . . 1 . . Known Exits Taken 1 | . . . . . 1 . Unknown Exits Taken 5 | 1 1 1 1 1 . . Scrap Searched 1 | . . . . 1 . . Spaces Dug . | . . . . . . . Terrain Destroyed 1 | . . . . . 1 . Melee . | . . . . . . . Projectile 1 | . . . . . 1 . AOE . | . . . . . . . Terrain Rammed . | . . . . . . . Walls Destroyed . | . . . . . . . Machines Disabled . | . . . . . . . Actions | -11 -10 -10 -9 -9 -8 -8 --------- Run | Yrd Mat Min Mat Min Mat Sto Total 1483 | 57 265 167 375 100 240 279 Wait 113 | 5 6 7 64 11 20 . Move 1060 | 44 201 143 281 73 119 199 Hop . | . . . . . . . Pick Up 29 | 2 9 6 1 1 4 6 Fast Attach 35 | 6 2 1 1 1 13 11 Attach 17 | . 5 2 1 2 7 . Detach 12 | . 4 . . 1 7 . Swap 18 | . 3 2 1 . 1 11 Drop 44 | . 7 6 1 2 10 18 Fire 84 | . 18 . . . 32 34 Melee 57 | . 10 . 19 9 19 . Ram 5 | . . . . . 5 . Kick . | . . . . . . . Crush . | . . . . . . . Escape Stasis . | . . . . . . . Rewire 9 | . . . 6 . 3 . Trap . | . . . . . . . Miscellaneous . | . . . . . . . Route ------- -11/Scrapyard -10/Materials -10/Mines -9/Materials (discovered 2 exits: [*Min x2]) -9/Mines -8/Materials -8/Storage History --------- Turn | Location | Event 15 | -11/Scrapyard | Discovered new exit (range 15) 56 | -11/Scrapyard | Entered Materials 316 | -10/Materials | Repaired Assault Rifle? 317 | -10/Materials | Build established: Mutant 319 | -10/Materials | Discovered new exit (range 6) 323 | -10/Materials | Entered Mines 325 | -10/Mines | Met a Derelict bent on vengeance 383 | -10/Mines | Met a Derelict shopkeep closing up shop 443 | -10/Mines | Discovered new exit (range 6) 448 | -10/Mines | Found the Drone Emporium 450 | -10/Mines | Found Prototype Device 456 | -10/Mines | Identified Splice Drone Bay 460 | -10/Mines | Entered Materials 460 | -9/Materials | Accompanied by 3 allies 460 | -9/Materials | Evolved 2 slots: Power x1, Utility x1 683 | -9/Materials | Discovered new exit (range 10) 690 | -9/Materials | Build established: Gladiator 698 | -9/Materials | Discovered new exit (range 14) 870 | -9/Materials | Entered Mines 870 | -9/Mines | Accompanied by 1 ally 884 | -9/Mines | Learned location of Storage (-8) 1019 | -9/Mines | Discovered new exit (range 5) 1030 | -9/Mines | Entered Materials 1030 | -8/Materials | Evolved 2 slots: Propulsion x1, Weapon x1 1052 | -8/Materials | Discovered new exit (range 15) 1108 | -8/Materials | Found Prototype Device 1110 | -8/Materials | Identified Active Sensor Suite 1124 | -8/Materials | Identified exit to Storage 1160 | -8/Materials | Lost 3 parts (1p1n1u) 1236 | -8/Materials | Core integrity fell below 50% 1287 | -8/Materials | Lost 7 parts (2p1n1u3w) 1466 | -8/Materials | Entered Storage 1674 | -8/Storage | Core integrity fell below 20% 1677 | -8/Storage | Build established: Scavenger-Gunner 1977 | -8/Storage | Destroyed by Y-45 Defender with Heavy Assault Rifle Last Messages --------------- 01870_ Imp. Heat Sink melted. 01870_ Particle Gun melted. 01870_ G-47 Trooper destroyed. 01872_ K-01 Serf collects debris. 01883_ Lgt. Deuterium Engine destroyed. 01885_ K-01 Serf destroyed. 01885_ G-50 Soldier suffers critical hit (Burn). 01885_ G-50 Soldier overheating. 01888_ Carbon-fiber Leg melted. 01888_ Hvy. Laser melted. 01888_ G-50 Soldier destroyed. 01895_ Acquired Lgt. Deuterium Engine. 01899_ U-05 Engineer builds a Door. 01899_ Dropped Lgt. Deuterium Engine. 01901_ Acquired 35 matter. 01911_ Dropped Lgt. Treads. 01930_ K-01 Serf collects debris. 01930_ Acquired 10 matter. 01938_ Extracted 6 energy. 01942_ Dropped Com. Battery. Map ----- +----------------------------------------------------+ | | | | | | | | | | | | | | | | | | | | | ???????????????????????????????????????????????? | | ???????????????????????????????????????????????? | | ???????????????????????????????????????????????? | | ???????????????????????????????????????????????? | | ?????????????????????######????????????????????? | | ???????????????????### ????????????????????? | | ???????????????????? ????????????????????? | | ???????????????????? Y ????????????????????? | | ????????????????????? ????????????????????? | | ?????????????????????? ????????????????????? | | ??????????????????????#k #????????????????????? | | ??????????????????????# #############????????? | | ??????????????????????# # * #????????? | | ??????????????????????# # #????????? | | ??????????????????????# # #????????? | | ??????????????????????# @/ #????????? | | ??????????????????????# # #????????? | | ??????????????????????# # ! #????????? | | ??????????????????????# # ! #????????? | | ??????????????????????# #########+###????????? | | ??????????????????????#+###???????# #??????????? | | ??????????????????????????????????#%#####+#????? | | ??????????????????????????????????# #????? | | ??????????????????????????????#####+## #????? | | ??????????????????????????????# % # #????? | | ??????????????????????????????# % # +????? | | ??????????????????????????????#=! # #????? | | ??????????????????????????????# =!!# #????? | | ??????????????????????????????# !!!+ +????? | | ????????????????????????????### !%[# #????? | | ????????????????????????????# #####+## #????? | | ????????????????????????????# #%|! #????? | | ????????????????????????????# """ #==! #????? | | ????????????????????????????# """=#%!* #????? | | ????????????????????????????# """=+=*!= #????? | | ????????????????????????????# =#=#######????? | | ????????????????????????????# """ #%#??????????? | | ?????????????????????????? +^""" #*#?#########? | | ???????????????????????? #^""" #*#?# # [[#? | | ????????????????????????????# # ### [[#? | +----------------------------------------------------+ Best States ------------- Heat Dissipation 59 Energy Generation 23 Energy Capacity 420 Matter Stores 350 Matter Capacity 350 Sight Range 16 Robot Scan Range 20 Terrain Scan Density 10 Armor Coverage 150 Evasion (%) 62 Recoil Reduction 3 Item Schematics ----------------- None Robot Schematics ------------------ None Fabricated ------------ Nothing Alien Tech Used ----------------- None Achievements -------------- Error 47 Factory Defaults I Spy Release The Drones! Challenges ------------ None Game ------ Seed AutogunGodMultirail Manual? 0 Play Time 00:27:54 Cumulative 10.9 hours Start 2024.08.10 @ 03:46:08 End 2024.08.10 @ 04:10:39 Sessions 1 Manual Loads 0 Difficulty Rogue Special Mode None Game No. 44 Rogue 42 Adventurer 0 Explorer 2 Win Type - Total 0 Types 0/0/0/0/0/0/0/0/0 Lore% 3 Gallery% 20 Achievement% 12 Wizard Run 0 Options --------- Layout 1 ASCII 0 Keyboard 0 Movement Numpad Keybinds 0 Fullscreen 1 Font 32/SmallcapsGlow Map View 50x35 Zoom Use 0% Tactical HUD 1 Map Filters NONE Filters NONE Steam 1 RUN: a372f851-86d2-434a-a636-5473a6951a1e